Cogmind - Beta 13 *** ADVENTURER MODE // 2024.04.01 @ 01:07:01 Player: Sapphic Bee Result: Destroyed by as-82729 with Assembled F-torch Performance ------------- Evolutions (0) 0 Regions Visited (2) 400 Robots Destroyed (22) 110 Value Destroyed (538) 538 Prototype IDs (2) 40 Alien Tech Used (0) 0 Bonus (0) 0 TOTAL SCORE: 1088 Bonus ------- None Cogmind --------- Core Integrity 0/250 Matter 270/300 Energy 53/100 System Corruption 1% Temperature Warm (199) Movement Core (1050) Ox20 Location -10/Mines Parts ------- > --- POWER (1) -------- (None) > --- PROPULSION (2) --- (None) > --- UTILITY (2) ------ Large Storage Unit High-capacity Storage Unit > --- WEAPON (2) ------- Mining Claw > --- INVENTORY (20) --- Improved Heat Sink Structural Scanner Structural Scanner Visual Processing Unit Sensor Array Signal Interpreter EM Pulse Gun Peak State ------------ > --- POWER ------------ Ion Engine > --- PROPULSION ------- Aluminum Leg Aluminum Leg > --- UTILITY ---------- Small Storage Unit Propulsion Shielding > --- WEAPON ----------- Assault Rifle Assault Rifle > --- INVENTORY -------- Light Ion Engine Light Ion Engine Light Treads Light Treads Aluminum Leg Aluminum Leg Improved Heat Sink Light Assault Rifle [Rating: 8] Favorites ----------- Power Ion Engine Engine Ion Engine Propulsion Aluminum Leg Treads Light Treads Leg Aluminum Leg Utility Small Storage Unit Device ECM Suite Storage Small Storage Unit Protection Propulsion Shielding Weapon Assault Rifle Energy Gun EM Pulse Gun Energy Cannon Beam Cannon Ballistic Gun Assault Rifle Slashing Weapon Mining Claw Build | -11 -10 -10 ------- Run | Yrd Mat Min Slots Evolved . | . . . Power . | . . . Propulsion . | . . . Utility . | . . . Weapon . | . . . Parts Attached 30 | . 20 10 Power 2 | . 1 1 Engine 2 | . 1 1 Core . | . . . Reactor . | . . . Propulsion 10 | . 8 2 Treads 3 | . 3 . Leg 7 | . 5 2 Wheel . | . . . Hover . | . . . Flight . | . . . Utility 9 | . 6 3 Device 3 | . 3 . Storage 5 | . 2 3 Processor . | . . . Hackware . | . . . Protection 1 | . 1 . Artifact . | . . . Weapon 9 | . 5 4 Energy Gun 4 | . 3 1 Energy Cannon 1 | . . 1 Ballistic Gun 3 | . 2 1 Ballistic Cannon . | . . . Launcher . | . . . Special Weapon . | . . . Impact Weapon . | . . . Slashing Weapon 1 | . . 1 Piercing Weapon . | . . . Special Melee Weapon . | . . . Unidentified Prototypes . | . . . Parts Lost 12 | . 1 11 Power 2 | . . 2 Propulsion 4 | . . 4 Utility 1 | . . 1 Weapon 5 | . 1 4 Highest Loss Streak 10 | . 1 10 To Critical Strikes . | . . . Average Slot Usage (%) 97 | . 97 94 Engine 13 | . 14 12 Leg 26 | . 26 24 Device 8 | . 7 11 Storage 14 | . 14 15 Protection 3 | . 4 . Energy Gun 12 | . 10 23 Ballistic Gun 15 | . 17 1 Naked Turns . | . . . Heaviest Build 31 | 13 31 29 Greatest Support 20 | 20 20 20 Greatest Overweight (x) 1 | . 1 1 Average Overweight (x) . | . . 1 Largest Inventory Capacity 20 | 8 15 20 Average Capacity 10 | 8 9 15 Most Carried 13 | 6 13 13 Average Carried 9 | 6 8 12 Final Capacity 20 | 8 15 20 Final Carried 13 | 6 13 7 Class Distribution -------------------- 100% | Mutant Dominant Class ---------------- Mutant | -10/Materials Mutant | -10/Mines Resources | -11 -10 -10 ----------- Run | Yrd Mat Min Matter Collected 605 | 200 343 62 Remotely . | . . . Salvage Created 804 | . 612 192 Parts 49 | . 39 10 Haulers Intercepted . | . . . Recyclers Shooed 3 | . 3 . Parts Field Recycled . | . . . Retrieved Matter . | . . . Parts Self-Destructed . | . . . Prevented . | . . . Kills | -11 -10 -10 ------- Run | Yrd Mat Min Combat Hostiles Destroyed 20 | . 12 8 Guns 17 | . 12 5 Cannons 2 | . . 2 AOE 1 | . . 1 Classes Destroyed 6 | . 5 1 Worker 1 | . 1 . Recycler 1 | . 1 . Watcher 3 | . 3 . Swarmer 6 | . 3 3 Grunt 11 | . 9 2 Assembled 3 | . . 3 Best Kill Streak 6 | . 6 3 Combat Bots Only 5 | . 5 3 Max Kills in Single Turn 2 | . 1 2 Gunslinging 1 | . . 1 Exploded 1 | . . 1 Melee . | . . . Uniques/NPCs Destroyed . | . . . Combat | -11 -10 -10 -------- Run | Yrd Mat Min Hostile Shots Fired 172 | . 60 112 Missed 37 | . 11 26 Damage Taken 1454 | . 456 998 Core 255 | . 61 194 Absorbed by Shields . | . . . Redirected to Shielding 11 | . 11 . Ignored by Resistances 432 | . 143 289 Core Remaining (%) 100 | 100 . . Volleys Fired 69 | . 47 22 Largest 2 | . 2 2 Hottest 100 | . 80 100 Shots Fired 125 | . 87 38 Gun 113 | . 87 26 Cannon 12 | . . 12 Launcher . | . . . Special . | . . . Kinetic 69 | . 64 5 Thermal 12 | . . 12 Explosive . | . . . Electromagnetic 44 | . 23 21 Robot Hit Streak 23 | . 23 18 Robot Miss Streak 2 | . 2 2 Penetration Max . | . . . Secondary Targets 2 | . 1 1 Max Gunslinging Chain 1 | . 1 1 Shots Hit Robots 96 | . 66 30 Core Hits 44 | . 29 15 Critical Kills . | . . . Critical Parts Destroyed . | . . . Critical Strikes 1 | . . 1 Corrupt 1 | . . 1 Melee Attacks . | . . . Impact . | . . . Slashing . | . . . Piercing . | . . . Sneak Attacks . | . . . Combat Hostiles . | . . . Follow-up Attacks . | . . . Damage Inflicted 1345 | . 843 502 Guns 1069 | . 840 229 Cannons 192 | . . 192 Explosions 74 | . . 74 Melee . | . . . Ramming 10 | . 3 7 Kinetic 605 | . 573 32 Thermal 266 | . . 266 Explosive . | . . . Electromagnetic 464 | . 267 197 Impact . | . . . Slashing . | . . . Piercing . | . . . Highest Corruption 1 | . . 1 Average Corruption 1 | . . 1 Corruption Purged . | . . . Corruption Blocked . | . . . Overload Shots . | . . . Overflow Damage . | . . . Projectiles . | . . . Explosions . | . . . Melee . | . . . Knockbacks 1 | . . 1 Impact 1 | . . 1 Kinetic . | . . . Secondary . | . . . Self-Inflicted Damage 30 | . . 30 Shots 1 | . . 1 Rammed . | . . . Targets Rammed 2 | . 1 1 Kicked 2 | . 1 1 Crushed . | . . . Highest Temperature 204 | . 99 204 Average Temperature 55 | . 44 66 Received Heat Transfer 437 | . 315 122 Siege Activations . | . . . Robots Corrupted . | . . . Combat Hostiles . | . . . Parts Fried 2 | . 2 . Impact Corruptions . | . . . Robots Melted . | . . . Combat Hostiles . | . . . Parts Melted . | . . . Heat Transferred 507 | . . 507 Parts Sabotaged . | . . . Parts Stolen . | . . . Parts Stripped . | . . . Power Chain Reactions 1 | . . 1 Alert | -11 -10 -10 ------- Run | Yrd Mat Min Peak Influence 284 | . 284 121 Initial 2 | . . 2 Average 73 | . 74 74 Maximum Alert Level 1 | . 1 . Low Security (%) 93 | 100 92 100 Level 1 6 | . 7 . Level 2 . | . . . Level 3 . | . . . Level 4 . | . . . Level 5 . | . . . High Security . | . . . Max Security . | . . . Squads Dispatched 2 | . 2 . Investigation 2 | . 2 . Extermination . | . . . Reinforcement . | . . . Assault . | . . . Garrison . | . . . Intercept . | . . . Searches Triggered . | . . . Construction Impeded . | . . . Haulers Reinforced . | . . . Active Scanning Responses . | . . . Cargo Convoy Interrupts . | . . . Stealth | -11 -10 -10 --------- Run | Yrd Mat Min Distress Signals . | . . . Communications Jammed . | . . . Distress Signals . | . . . Times Spotted 38 | . 23 15 Peak Tracking Total 9 | . 5 9 Tactical Retreats 4 | . 2 2 Traps | -11 -10 -10 ------- Run | Yrd Mat Min Traps Triggered 3 | . 3 . Indirectly . | . . . Trap Hack Attempts . | . . . Triggered . | . . . Disarmed . | . . . Reprogrammed . | . . . Reused . | . . . Traps Extracted . | . . . Installed . | . . . Triggered . | . . . Machines | -11 -10 -10 ---------- Run | Yrd Mat Min Machines Disabled 1 | . 1 . Max in Single Turn 1 | . 1 . Machines Repaired . | . . . Machines Dismantled . | . . . Machines Sabotaged . | . . . Overloaded Fab Kills . | . . . Hacking | -11 -10 -10 --------- Run | Yrd Mat Min Machines Accessed 9 | . 9 . Terminals 7 | . 7 . Fabricators . | . . . Repair Stations . | . . . Recycling Units 2 | . 2 . Scanalyzers . | . . . Garrison Access . | . . . Total Hacks 31 | . 31 . Successful 17 | . 17 . Failed 14 | . 14 . Catastrophic . | . . . Database Lockouts . | . . . Manual 21 | . 21 . Terminals 27 | . 27 . Fabricators . | . . . Repair Stations . | . . . Recycling Units 4 | . 4 . Scanalyzers . | . . . Garrison Access . | . . . Terminal Hacks 9 | . 9 . Part Schematic 1 | . 1 . Robot Analysis 1 | . 1 . Prototype ID Bank 1 | . 1 . Branch Access Points 1 | . 1 . Terminal Index 1 | . 1 . Hauler Manifests 1 | . 1 . Zone Layout 3 | . 3 . Fabricator Hacks . | . . . Repair Station Hacks . | . . . Recycling Unit Hacks 2 | . 2 . Report Inventory 1 | . 1 . Retrieve Components 1 | . 1 . Scanalyzer . | . . . Garrison Access Hacks . | . . . Unauthorized Hacks 6 | . 6 . Terminals 6 | . 6 . Botnet 6 | . 6 . Fabricators . | . . . Repair Stations . | . . . Recycling Units . | . . . Scanalyzers . | . . . Garrison Access . | . . . Data Cores Recovered . | . . . Used . | . . . Hacking Detections 8 | . 8 . Full Trace Events 1 | . 1 . Feedback Events . | . . . Feedback Blocked . | . . . Robot Schematics Acquired . | . . . Robots Built . | . . . Authchips . | . . . Time . | . . . Total Robot Build Rating . | . . . Part Schematics Acquired 1 | . 1 . Parts Built . | . . . Authchips . | . . . Time . | . . . Total Part Build Rating . | . . . Parts Repaired . | . . . Time . | . . . Parts Recycled . | . . . Recycled Matter . | . . . Retrieved Matter . | . . . Retrieved Components 10 | . 10 . Parts Scanalyzed . | . . . Part Schematics Acquired . | . . . Parts Damaged . | . . . Bothacking | -11 -10 -10 ------------ Run | Yrd Mat Min Used RIF Installer . | . . . Robots Hacked . | . . . Non-combat . | . . . Combat . | . . . Robot Hacks Applied . | . . . Relay Couplers Released . | . . . Fabnet Peak Effective % . | . . . Robots Rewired . | . . . Allies Hacked . | . . . Hacks Repelled . | . . . Allies | -11 -10 -10 -------- Run | Yrd Mat Min Total Allies . | . . . Largest Group . | . . . Highest-Rated Group . | . . . Highest-Rated Ally . | . . . Total Orders . | . . . Ally Attacks . | . . . Total Damage . | . . . Kills . | . . . Allies Corrupted . | . . . Allies Melted . | . . . Intel | -11 -10 -10 ------- Run | Yrd Mat Min Robot Analysis Total 1 | . 1 . Derelict Logs Recovered 1 | . . 1 Drone Launches . | . . . Drone Recoveries . | . . . Exploration | -11 -10 -10 ------------- Run | Yrd Mat Min Turns Passed 1721 | 16 1477 228 Spaces Moved 985 | 14 897 74 Core . | . . . Treads 6 | . 6 . Legs 979 | 14 891 74 Wheels . | . . . Hover . | . . . Flight . | . . . Fastest Speed 120 | 120 120 190 Average Speed 139 | 120 136 190 Slowest Speed 190 | 120 190 190 Overloaded Moves . | . . . Propulsion Burnouts . | . . . Robots Hopped . | . . . Cave-ins Triggered . | . . . Exploration Rate (%) 36 | 3 93 14 Regions Visited 2 Branch Regions 1 Pre-discovered Areas 1 | . . 1 Known Exits Taken 1 | . 1 . Unknown Exits Taken 1 | 1 . . Scrap Searched 1 | . . 1 Spaces Dug . | . . . Terrain Destroyed 9 | . . 9 Melee . | . . . Projectile . | . . . AOE 9 | . . 9 Terrain Rammed . | . . . Walls Destroyed . | . . . Machines Disabled . | . . . Actions | -11 -10 -10 --------- Run | Yrd Mat Min Total 1205 | 13 1070 122 Wait 90 | . 75 15 Move 983 | 13 896 74 Hop . | . . . Pick Up 15 | . 15 . Fast Attach 5 | . 5 . Attach 9 | . 2 7 Detach 1 | . 1 . Swap 16 | . 13 3 Drop 15 | . 15 . Fire 69 | . 47 22 Melee . | . . . Ram . | . . . Kick 2 | . 1 1 Crush . | . . . Escape Stasis . | . . . Rewire . | . . . Trap . | . . . Miscellaneous . | . . . Route ------- -11/Scrapyard -10/Materials (discovered 4 exits: [*Mat x3] / *Min) -10/Mines History --------- Turn | Location | Event 1 | -11/Scrapyard | Discovered new exit (range 3) 17 | -11/Scrapyard | Entered Materials 170 | -10/Materials | Discovered new exit (range 18) 210 | -10/Materials | Identified exit to Mines 345 | -10/Materials | Build established: Mutant 550 | -10/Materials | Discovered new exit (range 14) 687 | -10/Materials | Discovered new exit (range 16) 1494 | -10/Materials | Entered Mines 1653 | -10/Mines | Assembled infested the area 1702 | -10/Mines | Core integrity fell below 50% 1719 | -10/Mines | Core integrity fell below 20% 1722 | -10/Mines | Destroyed by as-82729 with Assembled F-torch Last Messages --------------- 01670_ T-07 Excavator destroyed. 01677_ Knocked back. 01679_ as-24762 destroyed. 01682_ EM Pulse Gun destroyed. 01684_ Aluminum Leg destroyed. 01686_ ECM Suite destroyed. 01686_ System corrupted by crushing effect (+1). 01690_ EM Pulse Gun destroyed. 01692_ as-89680 destroyed. 01699_ as-75614 destroyed. 01699_ Aluminum Leg destroyed. 01703_ as-86813 misfires. 01706_ Lgt. Ion Engine destroyed. 01709_ Aluminum Leg destroyed. 01710_ as-23664 destroyed. 01710_ K-01 Serf collects debris. 01712_ Lgt. Assault Rifle destroyed. 01713_ K-01 Serf collects debris. 01720_ Beam Cannon destroyed. 01721_ K-01 Serf collects debris. Map ----- +----------------------------------------------------+ | ????????????????????????????? | | ????????????????????????????? | | ????????????????????????????? | | ????????????????????????????? | | ????????????????????????????? | | ????????????????????????????? | | ????????????????????????????? | | ????????????????????????????? | | ????????????????????????????? | | ??????####??????????????????? | | ?????## ###########????????? | | ????## #???????? | | ???## ######### #???????? | | ???# ###???????# #####??? | | ???# ##?????????# #??? | | ??## #??????????#####!#?? | | ??# #????????????###!### | | ??# ##??????????## | | ??# ##?????##### | | ??# [ ##????# ""## | | ??##% ##???# !["#?? | | ??## [ ##??# #### =% "#??? | | ??# %% #### #??##"[ "#??? | | ??# #???##"""#??? | | ??# %ku #####????#####??? | | ??##@%a ##???????????????? | | ???##%aa ###????????????????? | | ????# aa##??????????????????? | | ????# %##???????????????????? | | ????# #????????????????????? | | ????## #????????????????????? | | ?????# #????????????????????? | | ?????#%#????????????????????? | | ?????# #????????????????????? | | ?????#|#????????????????????? | | ?????#%#????????????????????? | | ?????#!#????????????????????? | | ?????# #????????????????????? | | ?????# #????????????????????? | | ?????# #????????????????????? | | ?????# #????????????????????? | | ?????# ????????????????????? | | ????? ????????????????????? | | ????? !????????????????????? | | ????? %????????????????????? | | ?????# ????????????????????? | | ??????# ????????????????????? | | ???????#????????????????????? | | ????????????????????????????? | | ????????????????????????????? | +----------------------------------------------------+ Best States ------------- Heat Dissipation 25 Energy Generation 10 Energy Capacity 250 Matter Stores 300 Matter Capacity 300 Sight Range 16 Terrain Scan Density 10 ECM Strength 1 Resistance: KI 20 Resistance: TH 20 Resistance: EX 20 Resistance: EM 20 Resistance: I 20 Resistance: S 20 Resistance: P 20 Propulsion Shielding 33 Evasion (%) 55 Recoil Reduction 2 Offensive Hacking 10 Item Schematics ----------------- Lrg. Storage Unit | -10/Materials | Hacked Robot Schematics ------------------ None Fabricated ------------ Nothing Alien Tech Used ----------------- None Achievements -------------- None Challenges ------------ None Game ------ Seed TitaniumNeutronMembrane Manual? 0 Play Time 00:23:43 Cumulative 18.9 hours Start 2024.04.01 @ 00:40:23 End 2024.04.01 @ 01:07:01 Sessions 1 Manual Loads 0 Difficulty Adventurer Special Mode None Game No. 17 Rogue 8 Adventurer 4 Explorer 5 Win Type - Total 0 Types 0/0/0/0/0/0/0/0/0 Lore% 20 Gallery% 35 Achievement% 23 Wizard Run 0 Options --------- Layout 0 ASCII 0 Keyboard 0 Movement Mouse Keybinds 0 Fullscreen 2 Font 18/SmallcapsGlow Map View 76x50 Zoom Use 0% Tactical HUD 1 Map Filters NONE Filters NONE Steam 1 RUN: aa71beea-a299-41ba-b91b-c7d35f217067